bitfinex/quotes_BTCUSD_20230111
["timestamp","ask_amount","ask_price","bid_price","bid_amount"]
[1673399166535,0.02029863,17490.0,17489.0,2.47254792]
[1673399167073,0.02029863,17490.0,17489.0,2.64265582]
[1673399167902,0.00374966,17491.0,17490.0,0.3]
[1673399168160,0.00374966,17491.0,17490.0,2.1191825]
[1673399169086,0.00374966,17491.0,17490.0,2.3691825]
[1673399169629,0.00374966,17491.0,17490.0,2.4091825]
[1673399170420,0.00374966,17491.0,17490.0,2.7091825]
[1673399170685,0.00374966,17491.0,17490.0,2.4091825]
[1673399171480,0.75804939,17492.0,17490.0,2.4091825]
[1673399171733,0.92956261,17492.0,17490.0,2.4091825]
[1673399172244,0.35887,17491.0,17490.0,2.4091825]
[1673399172535,0.33521322,17492.0,17490.0,2.4091825]
[1673399172764,0.1637,17492.0,17490.0,2.3691825]
[1673399173273,0.1637,17492.0,17490.0,2.6550525]
[1673399173526,0.1637,17492.0,17490.0,2.6950525]
[1673399174034,0.1433975,17492.0,17491.0,0.62153148]
[1673399174282,0.1433975,17492.0,17491.0,1.76497548]
[1673399175078,0.1433975,17492.0,17491.0,2.01497548]
[1673399175591,0.1433975,17492.0,17491.0,2.01897548]
[1673399176669,0.1433975,17492.0,17491.0,2.01905807]
[1673399177971,0.19034631,17493.0,17491.0,2.01905807]
[1673399177972,0.01883309,17493.0,17491.0,2.01905807]
[1673399178224,0.19034631,17493.0,17491.0,2.01905807]
[1673399178466,0.83800174,17493.0,17491.0,2.01905807]
[1673399179059,1.09526057,17493.0,17491.0,2.01505807]
[1673399179475,0.19034631,17493.0,17491.0,2.01505807]
[1673399179741,0.19034631,17493.0,17492.0,0.3]
[1673399180234,0.19034631,17493.0,17492.0,1.443378]
[1673399180492,0.01883309,17493.0,17492.0,1.443378]
[1673399180748,0.19034631,17493.0,17492.0,1.693378]
[1673399181520,0.19034631,17493.0,17492.0,1.702378]
[1673399182287,0.19034631,17493.0,17492.0,2.27436534]
[1673399182542,0.01883309,17493.0,17492.0,2.27436534]
[1673399182810,0.01883309,17493.0,17492.0,2.74447324]
[1673399183076,0.01883309,17493.0,17492.0,3.35850508]
[1673399183291,0.01883309,17493.0,17492.0,4.01191864]
[1673399183546,0.01883309,17493.0,17492.0,4.17267071]
[1673399183800,0.01883309,17493.0,17492.0,3.44961248]
[1673399185342,0.01883309,17493.0,17492.0,3.058035]
[1673399185829,0.01883309,17493.0,17492.0,4.0433505]
[1673399186304,0.01883309,17493.0,17492.0,4.0518505]
[1673399186871,0.01883309,17493.0,17492.0,4.05196651]
[1673399187117,0.01883309,17493.0,17492.0,4.22190771]
[1673399187347,0.01883309,17493.0,17492.0,4.22206091]
[1673399187858,0.01883309,17493.0,17492.0,4.21306091]
[1673399188131,0.01883309,17493.0,17492.0,4.25306091]
[1673399190213,0.01883309,17493.0,17492.0,4.58086091]
[1673399190495,0.01883309,17493.0,17492.0,5.55195659]
[1673399190745,0.01883309,17493.0,17492.0,5.50113049]
[1673399191217,0.01883309,17493.0,17492.0,5.16096538]
[1673399191462,0.01883309,17493.0,17492.0,5.50084012]
[1673399191987,0.01883309,17493.0,17492.0,5.75574893]
[1673399192491,0.01883309,17493.0,17492.0,5.16096538]
[1673399192761,0.01883309,17494.0,17493.0,0.3]
[1673399193023,0.01883309,17494.0,17493.0,5.44785707]
[1673399193280,0.01883309,17494.0,17493.0,5.78443317]
[1673399193551,0.01883309,17494.0,17493.0,6.65426797]
[1673399193799,0.01883309,17494.0,17493.0,5.56445522]
[1673399194055,0.01883309,17494.0,17493.0,5.17338967]
[1673399194356,0.01883309,17494.0,17493.0,5.66102307]
[1673399194586,0.01883309,17494.0,17493.0,5.54587087]
[1673399194815,0.01883309,17494.0,17493.0,5.71584917]
[1673399195094,0.01883309,17494.0,17493.0,5.54588267]
[1673399195317,0.01883309,17494.0,17493.0,5.71584917]
[1673399195541,0.01883309,17494.0,17493.0,5.54583633]
[1673399196376,0.01883309,17494.0,17493.0,5.49501023]
[1673399196635,0.01883309,17494.0,17493.0,5.49509281]
[1673399197150,0.01883309,17494.0,17493.0,5.49508155]
[1673399197409,0.01883309,17494.0,17493.0,5.4910816]
[1673399197670,0.01883309,17494.0,17493.0,5.6320816]
[1673399197936,0.01883309,17494.0,17493.0,5.49103108]
[1673399198257,0.01883309,17494.0,17493.0,5.63003108]
[1673399198722,0.01883309,17494.0,17493.0,5.26154953]
[1673399199568,0.01883309,17494.0,17493.0,4.03487043]
[1673399199774,0.01883309,17494.0,17493.0,4.56154953]
[1673399201313,0.01883309,17494.0,17493.0,4.81640909]
[1673399201567,0.01883309,17494.0,17493.0,4.91822368]
[1673399201838,0.01883309,17494.0,17493.0,5.61822368]
[1673399202638,0.01883309,17494.0,17493.0,5.78829825]
[1673399203410,0.01883309,17494.0,17493.0,5.6181604]
[1673399203934,0.01883309,17494.0,17493.0,5.26148625]
[1673399204189,0.01883309,17494.0,17493.0,4.56513225]
[1673399204778,0.01883309,17494.0,17493.0,5.09181135]
[1673399204973,0.01883309,17494.0,17493.0,5.26148625]
[1673399205227,0.01883309,17494.0,17493.0,4.73480715]
[1673399205485,0.01883309,17494.0,17493.0,4.56513225]
[1673399206494,0.01883309,17494.0,17493.0,4.61595835]
[1673399209517,0.01883309,17494.0,17493.0,5.14263745]
[1673399209806,0.01883309,17494.0,17493.0,5.56717191]
[1673399210266,0.01883309,17494.0,17493.0,5.51634581]
[1673399210517,0.01883309,17494.0,17493.0,5.56717191]
[1673399210778,0.01883309,17494.0,17493.0,5.31231235]
[1673399211068,0.01883309,17494.0,17493.0,4.78563325]
[1673399211290,0.01883309,17494.0,17493.0,4.61595835]
[1673399211535,0.01883309,17494.0,17493.0,4.78563325]
[1673399212541,0.03053309,17494.0,17493.0,4.78563325]
[1673399213305,0.03053309,17494.0,17493.0,4.8464683]
[1673399213597,0.03053309,17494.0,17493.0,5.10132786]
[1673399213846,0.03053309,17494.0,17493.0,5.18839932]
[1673399214071,0.03042768,17494.0,17493.0,5.71507842]
[1673399214893,0.03042768,17494.0,17493.0,5.18521627]
[1673399215106,0.03042768,17494.0,17493.0,5.35651523]
[1673399215345,0.03042768,17494.0,17493.0,5.18519377]
[1673399215605,0.03042768,17494.0,17493.0,4.75444396]
[1673399215606,0.02409425,17494.0,17493.0,4.75444396]
[1673399215859,0.02409425,17494.0,17493.0,5.45444396]
[1673399216120,0.03028003,17495.0,17493.0,5.40361786]
[1673399216379,0.09580418,17496.0,17494.0,3.95836668]
[1673399216632,0.09580418,17496.0,17495.0,4.93096678]
[1673399216887,0.09580418,17496.0,17495.0,5.29600786]
[1673399217144,0.09580418,17496.0,17495.0,5.2089364]
[1673399217458,0.09580418,17496.0,17495.0,4.0808495]
[1673399217672,0.09580418,17496.0,17495.0,2.70627483]
[1673399217918,0.09580418,17496.0,17495.0,1.964773]
[1673399218703,0.09580418,17496.0,17495.0,2.623643]
[1673399218958,0.09580418,17496.0,17495.0,2.764643]
[1673399219208,0.09580418,17496.0,17495.0,2.486329]
[1673399219459,0.09580418,17496.0,17495.0,3.02677249]
[1673399219738,0.09580418,17496.0,17495.0,3.38564249]
[1673399220014,0.09580418,17496.0,17495.0,3.98564249]
[1673399220269,0.09580418,17496.0,17495.0,3.98578506]
[1673399220790,0.05180418,17496.0,17495.0,3.98578506]
[1673399221612,0.05180418,17496.0,17495.0,4.15569589]
[1673399221844,0.05180418,17496.0,17495.0,4.15383289]
[1673399222094,0.05180418,17496.0,17495.0,4.49193863]
[1673399222339,0.04680418,17496.0,17495.0,4.49193863]
[1673399223106,0.04680418,17496.0,17495.0,4.40869369]
[1673399223359,0.04680418,17496.0,17495.0,4.49196521]
[1673399223626,0.04680418,17496.0,17495.0,4.40869369]
[1673399223881,0.04680418,17496.0,17495.0,3.79496289]
[1673399225402,0.04680418,17496.0,17495.0,4.40869369]
[1673399226420,0.04680418,17496.0,17495.0,4.49195501]
[1673399227193,0.04680418,17496.0,17495.0,4.04088622]
[1673399227446,0.04680418,17496.0,17495.0,4.46568814]
[1673399227740,0.04680418,17496.0,17495.0,4.04088622]
[1673399228029,0.04680418,17496.0,17495.0,4.99001326]
[1673399228273,0.04680418,17496.0,17495.0,4.82081098]
[1673399228533,0.04680418,17496.0,17495.0,4.09236859]
[1673399229614,0.04680418,17496.0,17495.0,4.26157087]
[1673399230163,0.04680418,17496.0,17495.0,4.86684758]
[1673399230900,0.04680418,17496.0,17495.0,4.69769867]
[1673399231419,0.04680418,17496.0,17495.0,4.69778124]
[1673399232419,0.04680418,17496.0,17495.0,4.64695514]
[1673399232691,0.04680418,17496.0,17495.0,4.64687257]
[1673399233992,0.04680418,17496.0,17495.0,4.47747091]
[1673399234243,0.04680418,17496.0,17495.0,4.11860091]
[1673399234764,0.04680418,17496.0,17495.0,4.03527959]
[1673399235019,0.04680418,17496.0,17495.0,3.73527959]
[1673399235274,0.04680418,17496.0,17495.0,3.77962658]
[1673399235593,0.04680418,17496.0,17495.0,4.11783402]
[1673399235814,0.04680418,17496.0,17495.0,4.47670402]
[1673399236323,0.04680418,17496.0,17495.0,4.47678659]
[1673399237122,0.04680418,17496.0,17495.0,4.64618825]
[1673399237362,0.04680418,17496.0,17495.0,4.11788593]
[1673399237893,0.04680418,17496.0,17495.0,4.47675593]
[1673399238194,0.04680418,17496.0,17495.0,4.11788593]
[1673399238923,0.04680418,17496.0,17495.0,4.11363867]
[1673399239146,0.04680418,17496.0,17495.0,4.1135561]
[1673399239397,0.04680418,17496.0,17495.0,3.44585046]
[1673399239637,0.04680418,17496.0,17495.0,4.00150347]
[1673399239881,0.04680418,17496.0,17495.0,4.44339868]
[1673399240623,0.04680418,17496.0,17495.0,4.78324021]
[1673399240883,0.04680418,17496.0,17495.0,4.44339868]
[1673399241652,0.04680418,17496.0,17495.0,4.08452868]
[1673399241905,0.04680418,17496.0,17495.0,4.44339868]
[1673399242661,0.04680418,17496.0,17495.0,4.08452868]
[1673399243160,0.04680418,17496.0,17495.0,4.44339868]
[1673399243418,0.04680418,17496.0,17495.0,4.78324021]
[1673399243669,0.04680418,17496.0,17495.0,4.78324567]
[1673399243930,0.04680418,17496.0,17495.0,4.44340414]
[1673399244480,0.04680418,17496.0,17495.0,4.612831]
[1673399249692,0.04680418,17496.0,17495.0,4.253961]
[1673399250964,0.04680418,17496.0,17495.0,4.612831]
[1673399251461,0.04680418,17496.0,17495.0,4.253961]
[1673399252246,0.04680418,17496.0,17495.0,4.08449517]
[1673399252501,0.04680418,17496.0,17495.0,4.08449749]
[1673399253531,0.04680418,17496.0,17495.0,4.78320902]
[1673399253753,0.04680418,17496.0,17495.0,4.44336749]
[1673399254252,0.04680418,17496.0,17495.0,4.08449749]
[1673399254511,0.04680418,17496.0,17495.0,4.08441492]
[1673399254782,0.63318766,17496.0,17495.0,2.84054256]
[1673399255022,0.63318766,17496.0,17495.0,2.67016454]
[1673399256626,0.63318766,17496.0,17495.0,2.09857354]
[1673399257399,0.80470088,17496.0,17495.0,2.09857354]
[1673399258432,1.16357088,17496.0,17495.0,2.09857354]
[1673399258694,0.80470088,17496.0,17495.0,2.09857354]
[1673399258951,0.80470088,17496.0,17495.0,2.09865611]
[1673399259244,1.16357088,17496.0,17495.0,2.09857354]
[1673399259785,1.16160088,17496.0,17495.0,2.09857354]
[1673399260845,0.80273088,17496.0,17495.0,2.09857354]
[1673399261405,0.80273088,17496.0,17495.0,0.391]
[1673399261406,1.89042825,17496.0,17495.0,0.391]
[1673399261674,2.28413974,17496.0,17495.0,0.391]
[1673399261953,2.1121142,17496.0,17495.0,0.391]
[1673399262530,1.59008446,17496.0,17495.0,0.391]
[1673399262802,1.76127955,17496.0,17495.0,0.391]
[1673399263054,1.41819779,17496.0,17495.0,0.391]
[1673399263860,1.59008446,17496.0,17495.0,0.391]
[1673399264131,1.41819827,17496.0,17495.0,0.391]
[1673399264657,0.83181479,17496.0,17495.0,1.22868046]
[1673399264924,0.21602975,17496.0,17495.0,2.134182]
[1673399265189,0.04483418,17496.0,17495.0,2.71743959]
[1673399265727,0.04483418,17496.0,17495.0,2.71752216]
[1673399265994,0.04483418,17496.0,17495.0,2.84396067]
[1673399266555,0.04483418,17496.0,17495.0,2.96351259]
[1673399267115,0.04483418,17496.0,17495.0,3.79917527]
[1673399267370,0.04483418,17496.0,17495.0,3.2927236]
[1673399268707,0.04483418,17496.0,17495.0,4.56244688]
[1673399269249,0.04483418,17496.0,17495.0,4.05613478]
[1673399269502,0.04483418,17496.0,17495.0,4.56249694]
[1673399269753,0.04483418,17496.0,17495.0,4.05613478]
[1673399270025,0.04483418,17496.0,17495.0,5.89526053]
[1673399270276,0.04483418,17496.0,17495.0,5.90407745]
[1673399270552,0.04483418,17496.0,17495.0,5.563919]
[1673399271092,0.04483418,17496.0,17495.0,6.263919]
[1673399272652,1.8e-07,17496.0,17495.0,6.263919]
[1673399272910,0.03028003,17497.0,17496.0,0.61907516]
[1673399273172,0.03028003,17497.0,17496.0,2.62470527]
[1673399273436,0.03028003,17497.0,17496.0,2.92470527]
[1673399273670,0.03028003,17497.0,17496.0,3.09471257]
[1673399274413,0.03028003,17497.0,17496.0,3.13414777]
[1673399274919,0.03028003,17497.0,17496.0,3.49301777]
[1673399275172,0.03028003,17497.0,17496.0,3.66303157]
[1673399276160,0.03028003,17497.0,17496.0,4.18285502]
[1673399276404,0.01028003,17497.0,17496.0,4.18285502]
[1673399276656,0.01028003,17497.0,17496.0,4.18291502]
[1673399277919,0.01028003,17497.0,17496.0,4.18266551]
[1673399278168,0.01028003,17497.0,17496.0,4.35244907]
[1673399278425,0.01028003,17497.0,17496.0,3.83281612]
[1673399278679,0.01028003,17497.0,17496.0,3.66293629]
[1673399279192,0.06666667,17504.0,17497.0,0.00155462]
[1673399279453,0.49477728,17504.0,17503.0,0.6]
[1673399279718,0.06666667,17504.0,17503.0,4.54533166]
[1673399280003,0.06666667,17504.0,17503.0,4.66972656]
[1673399280272,0.06666667,17504.0,17503.0,4.43212867]
[1673399280532,0.06666667,17506.0,17505.0,0.02982627]
[1673399280786,0.05666667,17506.0,17505.0,2.82678621]
[1673399281059,0.05666667,17506.0,17505.0,1.14253]
[1673399281325,0.05666667,17506.0,17503.0,1.31033]
[1673399281569,0.05666667,17506.0,17504.0,1.142559]
[1673399281828,0.611953,17505.0,17504.0,0.571291]
[1673399282306,0.611953,17505.0,17503.0,1.421299]
[1673399282320,0.611953,17505.0,17503.0,1.721299]
[1673399282566,0.611953,17505.0,17503.0,1.471299]
[1673399282567,0.35887,17504.0,17503.0,1.471299]
[1673399282826,0.86697737,17506.0,17502.0,1.19021841]
[1673399283085,0.86697737,17506.0,17503.0,0.25]
[1673399283086,0.52227,17505.0,17503.0,0.25]
[1673399283393,0.77895753,17505.0,17503.0,0.25]
[1673399283619,0.358702,17504.0,17503.0,0.38908253]
[1673399283875,0.001,17504.0,17503.0,1.56039253]
[1673399284125,0.001,17504.0,17503.0,1.86031]
[1673399284390,0.51814841,17505.0,17503.0,1.72131]
[1673399284647,0.51814841,17505.0,17503.0,2.29278253]
[1673399284901,0.51814841,17505.0,17504.0,0.3]
[1673399285168,0.51614841,17505.0,17504.0,1.442594]
[1673399285677,0.51614841,17505.0,17504.0,1.742594]
[1673399285936,0.51814841,17505.0,17504.0,1.442594]
[1673399286210,0.51814841,17505.0,17504.0,1.692594]
[1673399286439,0.004,17505.0,17504.0,1.89925515]
[1673399287716,0.004,17505.0,17504.0,2.46852529]
[1673399287973,0.004,17505.0,17504.0,2.76860782]
[1673399288232,0.004,17505.0,17504.0,2.76852529]
[1673399288748,0.004,17505.0,17504.0,2.55795715]
[1673399289021,0.004,17505.0,17504.0,3.23222275]
[1673399289275,0.004,17505.0,17504.0,3.23214022]
[1673399289546,0.004,17505.0,17504.0,2.52749924]
[1673399290091,0.004,17505.0,17504.0,1.59925515]
[1673399290350,0.63807725,17505.0,17504.0,1.59925515]
[1673399290874,0.63807725,17505.0,17504.0,1.59931515]
[1673399291456,0.63807725,17505.0,17504.0,1.02801815]
[1673399291719,0.99677925,17505.0,17504.0,0.45672115]
[1673399292244,0.99277925,17505.0,17504.0,0.31772115]
[1673399292537,0.99477925,17505.0,17504.0,0.44972115]
[1673399292815,0.99277925,17505.0,17504.0,0.31772115]
[1673399293071,0.59737989,17505.0,17504.0,0.37672115]
[1673399293328,1.1810682,17505.0,17504.0,0.1224692]
[1673399294617,0.467702,17505.0,17504.0,0.1224692]
[1673399294877,0.60235549,17505.0,17504.0,0.1224692]
[1673399295181,0.90235549,17505.0,17504.0,0.1224692]
[1673399295901,1.64743172,17505.0,17504.0,0.0634692]
[1673399296152,1.64743172,17505.0,17502.0,0.04752541]
[1673399296153,0.20408189,17503.0,17502.0,0.04752541]
[1673399296438,1.57416577,17503.0,17502.0,0.04752541]
[1673399296706,0.3,17502.0,17500.0,0.571404]
[1673399296959,0.3,17502.0,17499.0,1.1010458]
[1673399296960,0.467002,17501.0,17499.0,1.1010458]
[1673399297205,1.27881692,17500.0,17498.0,1.10042586]
[1673399297467,0.467502,17499.0,17498.0,1.14825878]
[1673399297993,0.79043703,17500.0,17498.0,1.40042586]
[1673399297994,0.68243703,17500.0,17498.0,1.40042586]
[1673399298499,0.68243703,17500.0,17498.0,1.10042586]
[1673399298744,0.68243703,17500.0,17498.0,0.593464]
[1673399298745,0.372702,17499.0,17498.0,0.593464]
[1673399298993,0.372702,17499.0,17498.0,0.571464]
[1673399298994,0.358702,17499.0,17498.0,0.571464]
[1673399299264,0.658702,17499.0,17498.0,0.022]
[1673399299494,0.358702,17499.0,17497.0,0.57608318]
[1673399299742,0.358702,17498.0,17497.0,0.57608318]
[1673399299987,0.5699519,17499.0,17497.0,0.57608318]
[1673399300236,0.70630816,17498.0,17497.0,0.57608318]
[1673399301005,0.70630816,17498.0,17497.0,1.14760918]
[1673399301256,0.72030816,17498.0,17497.0,1.76960918]
[1673399302239,0.72030816,17498.0,17497.0,1.76969174]
[1673399302490,0.72030816,17498.0,17497.0,1.76960918]
[1673399302741,0.72030816,17498.0,17497.0,1.19811518]
[1673399303512,0.014,17498.0,17497.0,1.19811518]
[1673399304813,0.62106879,17498.0,17497.0,0.62658918]
[1673399305073,0.014,17498.0,17497.0,2.69642447]
[1673399305358,0.014,17498.0,17497.0,2.60732163]
[1673399305596,0.014,17498.0,17497.0,3.05790159]
[1673399305831,0.014,17498.0,17497.0,3.06007472]
[1673399306892,0.014,17498.0,17497.0,3.66252239]
[1673399308376,0.014,17498.0,17497.0,3.83212927]
[1673399308625,0.014,17498.0,17497.0,3.66252239]
[1673399309900,0.014,17498.0,17497.0,4.03489814]
[1673399310145,0.014,17498.0,17497.0,3.37681239]
[1673399310434,0.014,17498.0,17497.0,3.89087752]
[1673399310931,0.014,17498.0,17497.0,3.37181239]
[1673399311200,0.014,17498.0,17497.0,3.32587341]
[1673399311443,0.014,17498.0,17497.0,3.54141927]
[1673399311992,0.014,17498.0,17497.0,3.37181239]
[1673399312220,0.014,17498.0,17497.0,3.54141927]
[1673399312757,0.014,17498.0,17497.0,3.37181239]
[1673399313045,0.014,17498.0,17497.0,3.62181239]
[1673399313601,0.014,17498.0,17497.0,3.79141927]
[1673399314584,0.014,17498.0,17497.0,3.78641927]
[1673399314849,0.014,17498.0,17497.0,4.19495592]
[1673399315625,0.014,17498.0,17497.0,3.61672983]
[1673399316130,0.014,17498.0,17497.0,3.90244983]
[1673399316632,0.014,17498.0,17497.0,4.07205671]
[1673399317648,0.014,17498.0,17497.0,3.90244983]
[1673399317899,0.014,17498.0,17497.0,4.73944047]
[1673399318214,0.014,17498.0,17497.0,3.90244983]
[1673399318453,0.014,17498.0,17497.0,3.90253239]
[1673399318952,0.014,17498.0,17497.0,4.07213927]
[1673399319964,0.014,17498.0,17497.0,4.6143382]
[1673399320207,0.014,17498.0,17497.0,4.07213927]
[1673399320460,0.014,17498.0,17497.0,4.62799322]
[1673399320716,0.014,17498.0,17497.0,4.62791066]
[1673399320966,0.014,17498.0,17497.0,4.45830378]
[1673399321963,0.014,17498.0,17497.0,4.45838634]
[1673399322210,0.014,17498.0,17497.0,3.90253239]
[1673399322461,0.014,17498.0,17497.0,4.466705]
[1673399323218,0.014,17498.0,17497.0,4.46662244]
[1673399323492,0.014,17498.0,17497.0,3.87275733]
[1673399323732,0.44273789,17498.0,17497.0,2.97845477]
[1673399323993,0.20506,17498.0,17497.0,2.57381379]
[1673399324548,0.20506,17498.0,17497.0,2.57389635]
[1673399324800,0.20506,17498.0,17497.0,2.57381379]
[1673399326388,0.014,17498.0,17497.0,2.00964118]
[1673399326671,0.014,17498.0,17497.0,2.30964118]
[1673399326931,0.014,17498.0,17497.0,2.00964118]
[1673399327508,0.76639895,17498.0,17497.0,1.40964118]
[1673399328028,0.93404095,17498.0,17497.0,1.40964118]
[1673399328298,0.57533895,17498.0,17497.0,0.83811518]
[1673399328587,0.93404095,17498.0,17497.0,0.83811518]
[1673399329108,0.57533895,17498.0,17497.0,0.83811518]
[1673399329913,0.93404095,17498.0,17497.0,0.83811518]
[1673399330171,0.93404095,17498.0,17497.0,1.40964118]
[1673399330426,0.57533895,17498.0,17497.0,1.40964118]
[1673399334387,0.93404095,17498.0,17497.0,0.26658918]
[1673399334606,2.26411159,17498.0,17497.0,0.26658918]
[1673399334827,2.26411159,17498.0,17497.0,1e-08]
[1673399334828,2.27704736,17498.0,17497.0,1e-08]
[1673399335037,2.27704736,17498.0,17495.0,0.04965381]
[1673399335254,0.2,17496.0,17495.0,0.04965381]
[1673399335500,0.358702,17496.0,17495.0,0.04965381]
[1673399335710,0.358702,17496.0,17494.0,1.24807137]
[1673399335711,0.353702,17496.0,17494.0,1.24807137]
[1673399335922,2.48981496,17498.0,17494.0,1.54807137]
[1673399335923,0.8064634,17497.0,17494.0,1.54807137]
[1673399336146,0.3,17497.0,17494.0,1.54807137]
[1673399336372,0.358752,17496.0,17495.0,0.001]
[1673399336589,0.372752,17496.0,17495.0,0.301]
[1673399336821,0.372752,17496.0,17495.0,0.001]
[1673399337033,0.372752,17496.0,17495.0,0.63150414]
[1673399337244,0.014,17496.0,17495.0,1.80309514]
[1673399337453,0.51747718,17498.0,17495.0,1.80217771]
[1673399337709,0.014,17497.0,17495.0,2.03969303]
[1673399338011,0.358752,17496.0,17495.0,2.10209514]
[1673399338164,0.014,17496.0,17495.0,2.10309514]
[1673399338534,0.014,17496.0,17495.0,2.67476871]
[1673399338793,0.014,17496.0,17495.0,2.97576871]
[1673399339032,0.51747718,17498.0,17495.0,2.67368614]
[1673399339285,0.014,17496.0,17495.0,2.67468614]
[1673399339542,0.014,17496.0,17495.0,2.67476871]
[1673399340302,0.014,17496.0,17495.0,2.67468614]
[1673399343110,0.014,17496.0,17495.0,3.22468614]
[1673399343884,0.014,17496.0,17495.0,3.22476871]
[1673399344135,0.014,17496.0,17495.0,3.58352071]
[1673399344381,0.014,17496.0,17495.0,3.22476871]
[1673399344878,0.014,17496.0,17495.0,3.22468614]
[1673399345128,0.014,17496.0,17495.0,3.22476871]
[1673399346655,0.014,17496.0,17495.0,2.64020355]
[1673399346930,0.014,17496.0,17495.0,3.7710101]
[1673399347186,0.014,17496.0,17495.0,4.61502394]
[1673399347443,0.014,17496.0,17495.0,4.68519046]
[1673399347717,0.014,17496.0,17495.0,3.90415111]
[1673399348742,0.014,17496.0,17495.0,4.20415111]
[1673399349263,0.014,17496.0,17495.0,4.15821213]
[1673399350336,0.014,17496.0,17495.0,4.20415111]
[1673399351151,0.014,17496.0,17495.0,4.15821213]
[1673399352205,0.014,17496.0,17495.0,4.20415111]
[1673399353466,0.014,17496.0,17495.0,3.79937756]
[1673399355001,0.014,17496.0,17495.0,4.15812956]
[1673399355758,0.014,17496.0,17495.0,3.19692989]
[1673399356267,0.014,17496.0,17495.0,2.89692989]
[1673399356796,0.014,17496.0,17495.0,1.45867529]
[1673399356797,0.20506,17496.0,17495.0,1.45867529]
[1673399357037,1.27772378,17496.0,17495.0,1.45867529]
[1673399358592,0.014,17496.0,17495.0,2.05867529]
[1673399359812,0.014,17496.0,17495.0,2.05875786]
[1673399360059,0.014,17496.0,17495.0,2.05867529]
[1673399360557,0.009,17496.0,17495.0,2.05867529]
[1673399361314,0.009,17496.0,17495.0,1.75867529]
[1673399362349,0.009,17496.0,17495.0,2.35867529]
[1673399362862,0.009,17496.0,17495.0,2.35875786]
[1673399363130,0.009,17496.0,17495.0,2.35867529]
[1673399365146,0.73287918,17496.0,17495.0,1.48708429]
[1673399365398,1.09163118,17496.0,17495.0,1.48708429]
[1673399365908,1.09163118,17496.0,17495.0,0.31549329]
[1673399366183,1.26282675,17496.0,17495.0,0.31549329]
[1673399366699,1.51974179,17496.0,17495.0,0.31549329]
[1673399367245,1.26282675,17496.0,17495.0,0.31549329]
[1673399368489,1.51974179,17496.0,17495.0,0.31549329]
[1673399368769,1.26282675,17496.0,17495.0,0.31549329]
[1673399369283,1.51974179,17496.0,17495.0,0.31549329]
[1673399369550,1.26282675,17496.0,17495.0,0.31549329]
[1673399370280,1.26282675,17496.0,17495.0,0.91557586]
[1673399370534,1.09163118,17496.0,17495.0,0.91557586]
[1673399370803,0.73287918,17496.0,17495.0,0.91549329]
[1673399371537,0.73287918,17496.0,17495.0,0.91557586]
[1673399371801,1.09163118,17496.0,17495.0,1.48708429]
[1673399372097,0.73287918,17496.0,17495.0,1.48708429]
[1673399372815,0.73287918,17496.0,17495.0,0.91549329]
[1673399373091,1.09163118,17496.0,17495.0,0.91549329]
[1673399373597,0.73287918,17496.0,17495.0,0.91549329]
[1673399374090,0.73287918,17496.0,17495.0,0.91557586]
[1673399374343,0.73287918,17496.0,17495.0,1.48708429]
[1673399374592,0.73287918,17496.0,17495.0,0.91549329]
[1673399374841,1.09163118,17496.0,17495.0,0.91549329]
[1673399376172,1.26282675,17496.0,17495.0,0.31549329]
[1673399376704,1.51974179,17496.0,17495.0,0.31549329]
[1673399377460,1.26282675,17496.0,17495.0,0.31549329]
[1673399378249,2.71409138,17496.0,17495.0,1e-08]
[1673399379284,3.45767592,17496.0,17495.0,1e-08]
[1673399379541,3.66292506,17496.0,17495.0,1e-08]
[1673399379828,4.15847372,17496.0,17495.0,1e-08]
[1673399380039,4.19237386,17496.0,17495.0,0.00400001]
[1673399380297,3.93576395,17496.0,17495.0,0.00400001]
[1673399380542,3.76338045,17496.0,17495.0,0.00400001]
[1673399380796,4.58403764,17496.0,17495.0,0.00400001]
[1673399381053,3.92344931,17496.0,17495.0,0.00400001]
[1673399381299,5.63848771,17496.0,17495.0,0.00400001]
[1673399381553,5.29540595,17496.0,17495.0,0.00400001]
[1673399382310,4.86646537,17496.0,17495.0,0.00400001]
[1673399382813,0.0079802,17494.0,17492.0,0.00234645]
[1673399383077,0.98369744,17493.0,17492.0,0.00234645]
[1673399383329,1.4882461,17493.0,17492.0,0.00234645]
[1673399383593,1.7882461,17493.0,17492.0,0.00234645]
[1673399384132,1.20119744,17493.0,17492.0,0.00534645]
[1673399384367,1.20119744,17493.0,17492.0,0.00234645]
[1673399384632,1.7217461,17493.0,17492.0,0.00534645]
[1673399384952,1.21719744,17493.0,17492.0,0.00534645]
[1673399385657,1.20119744,17493.0,17492.0,0.00534645]
[1673399385921,1.21119744,17493.0,17492.0,0.00234645]
[1673399386213,1.43498783,17493.0,17492.0,0.00334645]
[1673399386451,1.27148783,17493.0,17492.0,0.00334645]
[1673399386708,1.57148783,17493.0,17492.0,0.00334645]
[1673399386961,2.07603649,17493.0,17492.0,0.00334645]
[1673399387216,2.31036348,17493.0,17492.0,0.00334645]
[1673399388709,2.14756348,17493.0,17492.0,0.00334645]
[1673399389515,1.94277309,17493.0,17492.0,0.00334645]
[1673399390005,1.3632783,17493.0,17492.0,0.00334645]
[1673399390295,1.72874477,17493.0,17492.0,0.00334645]
[1673399390800,2.60343091,17493.0,17492.0,0.00334645]
[1673399391065,1.22722525,17493.0,17492.0,0.00334645]
[1673399391322,0.387752,17493.0,17492.0,0.84094434]
[1673399391578,0.029,17493.0,17492.0,1.19702153]
[1673399391848,0.029,17493.0,17492.0,1.17503545]
[1673399392355,0.387752,17493.0,17492.0,2.03256445]
[1673399392610,0.029,17493.0,17492.0,2.03256445]
[1673399392880,0.387752,17493.0,17492.0,2.03256445]
[1673399393395,0.387752,17493.0,17492.0,1.17503545]
[1673399395411,1.07039072,17493.0,17492.0,0.57503545]
[1673399395674,1.07039072,17493.0,17492.0,0.00334645]
[1673399395926,1.24578044,17493.0,17492.0,0.00334645]
[1673399397002,1.07039072,17493.0,17492.0,0.00334645]
[1673399398558,1.24136836,17493.0,17492.0,0.00334645]
[1673399398823,1.54136836,17493.0,17492.0,0.00334645]
[1673399400592,1.79783483,17493.0,17492.0,0.00334645]
[1673399400851,1.24136836,17493.0,17492.0,0.00334645]
[1673399401368,1.06806672,17493.0,17492.0,0.00334645]
[1673399401860,1.23904436,17493.0,17492.0,0.00334645]
[1673399402123,0.385428,17493.0,17492.0,0.00342904]
[1673399402396,0.385428,17493.0,17492.0,0.86085545]
[1673399402658,0.385428,17493.0,17492.0,1.17503545]
[1673399402938,0.385428,17493.0,17492.0,1.46087545]
[1673399403439,0.385428,17493.0,17492.0,2.17016173]